Cogmind - Beta 10.1 @@@ ROGUE MODE // 2020.09.29 @ 11:24:51 Player: Plexion Result: Destroyed by D-53 Grenadier with Mini Grenade Launcher Performance ------------- Evolutions (0) 0 Regions Visited (2) 400 Robots Destroyed (6) 30 Value Destroyed (183) 183 Prototype IDs (0) 0 Alien Tech Used (0) 0 Bonus (0) 0 TOTAL SCORE: 613 Bonus ------- None Cogmind --------- Core Integrity 0/250 Matter 229/300 Energy 18/100 System Corruption 0% Temperature Cool (17) Movement Rolling (100) Location -10/Mines Parts ------- > --- POWER (1) -------- (None) > --- PROPULSION (2) --- Compact Wheel > --- UTILITY (2) ------ Small Storage Unit Medium Storage Unit > --- WEAPON (2) ------- Spread Laser Light Assault Rifle > --- INVENTORY (10) --- Aluminum Leg Light Armor Plating Spread Laser Grenade Launcher Peak State ------------ > --- POWER ------------ Light Ion Engine > --- PROPULSION ------- Compact Wheel Compact Wheel > --- UTILITY ---------- Small Storage Unit Light Armor Plating > --- WEAPON ----------- Heavy EM Pulse Gun Heavy EM Pulse Gun > --- INVENTORY -------- Heavy EM Pulse Gun Heavy EM Pulse Gun Spread Laser Spread Laser Light Assault Rifle Grenade Launcher [Rating: 10] Favorites ----------- Power Light Ion Engine Engine Light Ion Engine Propulsion Compact Wheel Leg Aluminum Leg Wheel Compact Wheel Utility Small Storage Unit Storage Small Storage Unit Protection Light Armor Plating Weapon Heavy EM Pulse Gun Energy Gun Heavy EM Pulse Gun Ballistic Gun Light Assault Rifle Launcher Grenade Launcher Build | -11 -10 -10 ------- Run | Scr Mat Min Slots Evolved . | . . . Power . | . . . Propulsion . | . . . Utility . | . . . Weapon . | . . . Parts Attached 20 | 6 5 9 Power 2 | 1 . 1 Engine 2 | 1 . 1 Core . | . . . Reactor . | . . . Propulsion 4 | 2 . 2 Treads . | . . . Leg 1 | . . 1 Wheel 3 | 2 . 1 Hover . | . . . Flight . | . . . Utility 4 | 1 3 . Device . | . . . Storage 3 | 1 2 . Processor . | . . . Hackware . | . . . Protection 1 | . 1 . Artifact . | . . . Weapon 10 | 2 2 6 Energy Gun 7 | 1 2 4 Energy Cannon . | . . . Ballistic Gun 2 | 1 . 1 Ballistic Cannon . | . . . Launcher 1 | . . 1 Special Weapon . | . . . Impact Weapon . | . . . Slashing Weapon . | . . . Piercing Weapon . | . . . Special Melee Weapon . | . . . Unidentified Prototypes . | . . . Parts Lost 8 | . . 8 Power 2 | . . 2 Propulsion 2 | . . 2 Utility . | . . . Weapon 4 | . . 4 Highest Loss Streak 7 | . . 7 Average Slot Usage (%) 93 | . 94 92 Engine 14 | . 14 14 Leg 1 | . . 2 Wheel 24 | . 28 19 Storage 23 | . 20 28 Energy Gun 21 | . 24 17 Ballistic Gun 1 | . 3 . Launcher 4 | . . 9 Naked Turns . | . . . Heaviest Build 21 | 9 21 21 Greatest Support 32 | 32 32 32 Greatest Overweight (x) 1 | . . 1 Average Overweight (x) . | . . . Largest Inventory Capacity 10 | 6 10 10 Average Capacity 8 | 5 8 10 Most Carried 9 | 4 7 9 Average Carried 6 | 2 6 7 Final Capacity 10 | 6 10 10 Final Carried 7 | 4 7 4 Class Distribution -------------------- 100% | Mutant Dominant Class ---------------- Mutant | -10/Materials Mutant | -10/Mines Resources | -11 -10 -10 ----------- Run | Scr Mat Min Matter Collected 370 | 211 99 60 Remotely . | . . . Salvage Created 196 | . 133 63 Parts 8 | . 4 4 Haulers Intercepted . | . . . Recyclers Shooed . | . . . Parts Field Recycled . | . . . Retrieved Matter . | . . . Parts Self-Destructed . | . . . Prevented . | . . . Kills | -11 -10 -10 ------- Run | Scr Mat Min Combat Hostiles Destroyed 6 | . 3 3 Guns 2 | . 2 . AOE 3 | . . 3 Classes Destroyed 2 | . 1 1 Grunt 5 | . 3 2 Assembled 1 | . . 1 Best Kill Streak 2 | . 2 2 Combat Bots Only 2 | . 2 2 Max Kills in Single Turn 1 | . 1 1 Gunslinging . | . . . Exploded 1 | . . 1 Melee . | . . . Uniques/NPCs Destroyed . | . . . Combat | -11 -10 -10 -------- Run | Scr Mat Min Damage Taken 891 | . 87 804 Core 256 | . 12 244 Absorbed by Shields . | . . . Core Remaining (%) 100 | 100 . . Volleys Fired 20 | . 8 12 Largest 2 | . 2 2 Hottest 90 | . 90 85 Shots Fired 29 | . 16 13 Gun 21 | . 16 5 Cannon . | . . . Launcher 8 | . . 8 Special . | . . . Kinetic 1 | . . 1 Thermal 1 | . . 1 Explosive 8 | . . 8 Electromagnetic 19 | . 16 3 Robot Hit Streak 6 | . 5 6 Robot Miss Streak 1 | . 1 1 Penetration Max . | . . . Secondary Targets . | . . . Shots Hit Robots 22 | . 11 11 Core Hits 8 | . 2 6 Critical Hits . | . . . Critical Kills . | . . . Critical Parts Destroyed . | . . . Melee Attacks . | . . . Impact . | . . . Slashing . | . . . Piercing . | . . . Sneak Attacks . | . . . Combat Hostiles . | . . . Follow-up Attacks . | . . . Damage Inflicted 538 | . 157 381 Guns 217 | . 157 60 Cannons . | . . . Explosions 321 | . . 321 Melee . | . . . Ramming . | . . . Kinetic 7 | . . 7 Thermal 14 | . . 14 Explosive 321 | . . 321 Electromagnetic 196 | . 157 39 Impact . | . . . Slashing . | . . . Piercing . | . . . Highest Corruption . | . . . Average Corruption . | . . . Corruption Purged . | . . . Overload Shots . | . . . Overflow Damage 26 | . . 26 Projectiles . | . . . Explosions 26 | . . 26 Melee . | . . . Knockbacks . | . . . Impact . | . . . Kinetic . | . . . Secondary . | . . . Self-Inflicted Damage 98 | . . 98 Shots 4 | . . 4 Rammed . | . . . Targets Rammed . | . . . Kicked . | . . . Crushed . | . . . Highest Temperature 138 | . 138 17 Average Temperature 44 | . 51 6 Received Heat Transfer 54 | . 36 18 Siege Activations . | . . . Robots Corrupted 1 | . 1 . Combat Hostiles 1 | . 1 . Parts Fried 3 | . 3 . Impact Corruptions . | . . . Robots Melted . | . . . Combat Hostiles . | . . . Parts Melted . | . . . Heat Transferred 20 | . . 20 Parts Sabotaged . | . . . Parts Stolen . | . . . Parts Stripped . | . . . Power Chain Reactions . | . . . Missiles Intercepted . | . . . Alert | -11 -10 -10 ------- Run | Scr Mat Min Peak Influence 90 | . 90 89 Initial 34 | . . 34 Average 39 | . 31 61 Maximum Alert Level . | . . . Low Security (%) 100 | 100 100 100 Level 1 . | . . . Level 2 . | . . . Level 3 . | . . . Level 4 . | . . . Level 5 . | . . . High Security . | . . . Max Security . | . . . Squads Dispatched 3 | . 3 . Investigation . | . . . Extermination . | . . . Reinforcement 3 | . 3 . Assault . | . . . Garrison . | . . . Intercept . | . . . Construction Impeded . | . . . Haulers Reinforced . | . . . Stealth | -11 -10 -10 --------- Run | Scr Mat Min Distress Signals 1 | . 1 . Communications Jammed . | . . . Distress Signals . | . . . Times Spotted 17 | . 9 8 Peak Tracking Total 4 | . 2 4 Tactical Retreats . | . . . Traps | -11 -10 -10 ------- Run | Scr Mat Min Traps Triggered . | . . . Indirectly . | . . . Trap Hack Attempts . | . . . Triggered . | . . . Disarmed . | . . . Reprogrammed . | . . . Reused . | . . . Traps Extracted . | . . . Installed . | . . . Triggered . | . . . Machines | -11 -10 -10 ---------- Run | Scr Mat Min Machines Disabled . | . . . Max in Single Turn . | . . . Machines Sabotaged . | . . . Garrisons Compromised . | . . . Overloaded Fab Kills . | . . . Fab Network Shutdowns . | . . . Hacking | -11 -10 -10 --------- Run | Scr Mat Min Machines Accessed . | . . . Terminals . | . . . Fabricators . | . . . Repair Stations . | . . . Recycling Units . | . . . Scanalyzers . | . . . Garrison Access . | . . . Total Hacks . | . . . Successful . | . . . Failed . | . . . Catastrophic . | . . . Database Lockouts . | . . . Manual . | . . . Terminals . | . . . Fabricators . | . . . Repair Stations . | . . . Recycling Units . | . . . Scanalyzers . | . . . Garrison Access . | . . . Terminal Hacks . | . . . Fabricator Hacks . | . . . Repair Station Hacks . | . . . Recycling Unit Hacks . | . . . Scanalyzer . | . . . Garrison Access Hacks . | . . . Unauthorized Hacks . | . . . Terminals . | . . . Fabricators . | . . . Repair Stations . | . . . Recycling Units . | . . . Scanalyzers . | . . . Garrison Access . | . . . Data Cores Recovered . | . . . Used . | . . . Hacking Detections . | . . . Full Trace Events . | . . . Feedback Events . | . . . Feedback Blocked . | . . . Robot Schematics Acquired . | . . . Robots Built . | . . . Matter . | . . . Time . | . . . Total Robot Build Rating . | . . . Part Schematics Acquired . | . . . Parts Built . | . . . Matter . | . . . Time . | . . . Total Part Build Rating . | . . . Parts Repaired . | . . . Time . | . . . Parts Recycled . | . . . Recycled Matter . | . . . Retrieved Matter . | . . . Retrieved Components . | . . . Parts Scanalyzed . | . . . Part Schematics Acquired . | . . . Parts Damaged . | . . . Bothacking | -11 -10 -10 ------------ Run | Scr Mat Min Used RIF Installer . | . . . Robots Hacked . | . . . Non-combat . | . . . Combat . | . . . Robot Hacks Applied . | . . . Relay Couplers Released . | . . . Robots Rewired . | . . . Allies Hacked . | . . . Hacks Repelled . | . . . Allies | -11 -10 -10 -------- Run | Scr Mat Min Total Allies . | . . . Largest Group . | . . . Highest-Rated Group . | . . . Highest-Rated Ally . | . . . Total Orders . | . . . Ally Attacks . | . . . Total Damage . | . . . Kills . | . . . Allies Corrupted . | . . . Allies Melted . | . . . Intel | -11 -10 -10 ------- Run | Scr Mat Min Robot Analysis Total . | . . . Derelict Logs Recovered 1 | . . 1 Drone Launches . | . . . Drone Recoveries . | . . . Exploration | -11 -10 -10 ------------- Run | Scr Mat Min Turns Passed 493 | 58 242 193 Spaces Moved 381 | 46 188 147 Core 2 | 2 . . Treads . | . . . Legs . | . . . Wheels 379 | 44 188 147 Hover . | . . . Flight . | . . . Fastest Speed 50 | 50 100 100 Average Speed 102 | 97 100 106 Slowest Speed 110 | 100 100 110 Overloaded Moves . | . . . Propulsion Burnouts . | . . . Robots Hopped . | . . . Cave-ins Triggered . | . . . Exploration Rate (%) 28 | 4 31 49 Regions Visited 2 Branch Regions 1 Pre-discovered Areas 1 | . . 1 Known Exits Taken . | . . . Unknown Exits Taken 2 | 1 1 . Scrap Searched 1 | . . 1 Spaces Dug . | . . . Terrain Destroyed 72 | . . 72 Melee . | . . . Projectile . | . . . AOE 72 | . . 72 Terrain Rammed . | . . . Walls Destroyed . | . . . Machines Disabled . | . . . Actions | -11 -10 -10 --------- Run | Scr Mat Min Total 457 | 55 231 171 Wait 18 | . 18 . Move 379 | 45 187 147 Hop . | . . . Pick Up 11 | 4 5 2 Fast Attach 10 | 6 3 1 Attach 6 | . . 6 Detach 3 | . 2 1 Swap 4 | . 2 2 Drop 6 | . 6 . Fire 20 | . 8 12 Melee . | . . . Ram . | . . . Kick . | . . . Crush . | . . . Escape Stasis . | . . . Rewire . | . . . Trap . | . . . Miscellaneous . | . . . Route ------- -11/Scrapyard -10/Materials -10/Mines History --------- Turn | Location | Event 6 | -11/Scrapyard | Discovered new exit (range 16) 59 | -11/Scrapyard | Entered Materials 282 | -10/Materials | Discovered new exit (range 16) 301 | -10/Materials | Entered Mines 317 | -10/Mines | Build established: Mutant 333 | -10/Mines | Learned location of Zion (-6) 418 | -10/Mines | Assembled infested the area 485 | -10/Mines | Core integrity fell below 50% 493 | -10/Mines | Core integrity fell below 20% 494 | -10/Mines | Destroyed by D-53 Grenadier with Mini Grenade Launcher Last Messages --------------- 00418_ ALERT: Infestation in the mines, dispatching Demolisher response squad. 00458_ Destroyed Asb. Hover Unit. 00460_ as-54934 destroyed. 00465_ The unstable cave ceiling collapses. 00474_ Acquired 29 matter. 00475_ C-30 ARC bursts open, deploying its payload. 00475_ D-53 Grenadier unfolds itself. 00476_ as-31827 destroyed. 00477_ Acquired Wheel. 00480_ Hvy. EM Pulse Gun destroyed. 00480_ as-86810 destroyed. 00482_ Hvy. EM Pulse Gun destroyed. 00484_ Lgt. Ion Engine destroyed. 00484_ as-88934 destroyed. 00488_ The unstable cave ceiling collapses. 00490_ Hvy. EM Pulse Gun destroyed. 00490_ Wheel destroyed. 00490_ Ion Engine destroyed. 00491_ The unstable cave ceiling collapses. Map ----- +----------------------------------------------------+ | ???# ## ### ##???## #???????????????? | | ???## #####??## #?????# ##??????????????? | | ????####????????## #????## #??????????????? | | ?????????????????# #???# ##?????????????? | | ????????????????? #??# ##????????????? | | ???????????????? #??# #????????????? | | ??????????????? ##??## #????????????? | | ?????????????? ##????## ##????????????? | | ?????????????# ##??????# #####?????????????? | | ?????????????# ##???????# ###???????????????? | | ?????????????# #???????### # #???????????????? | | ?????????????## #????????# % #????????????????? | | ??????????????###????????## ##???????????????? | | ?????????????????????????# #???????????????? | | ?????????????????????????# #???????????????? | | ?????????????????####????# #???????????????? | | ???????????????### #???# # d #???????????????? | | ??????????????## #??## d ##???????????????? | | ?????????????## ?### ######???????????? | | ????????????## < ## #???????????? | | ????????????# # #???????????? | | ???????????? ### #???????????? | | ???????????? ! ###?? #???????????? | | ?????????????? ### #???#???????????? | | ??????????????????## # #???????????? | | ???????????????????## @ # ????????????? | | ????????????????????# ## #???????????? | | ????????????????????# #? #??????????? | | ??????????????????? ##?? #?????????? | | ??????????????????##### ??? #?????????? | | ??????????????????????### % ??? #????????? | | ????????????????????????# ? ?????????? | | ????????????????????????## ? ?????????? | | ??????????????????????????# ????????????? | | ???????????????????????????# ???????????? | | ????????????????????????????# ### ????????????? | | ?????????????????????????????###??# ????????????? | | ?????????????????????????????????????????????????? | | ?????????????????????????????????????????????????? | | ?????????????????????????????????????????????????? | | ?????????????????????????????????????????????????? | | ?????????????????????????????????????????????????? | | ?????????????????????????????????????????????????? | | ?????????????????????????????????????????????????? | | ?????????????????????????????????????????????????? | | ?????????????????????????????????????????????????? | | ?????????????????????????????????????????????????? | | ?????????????????????????????????????????????????? | | ?????????????????????????????????????????????????? | | ?????????????????????????????????????????????????? | +----------------------------------------------------+ Best States ------------- Heat Dissipation 25 Energy Generation 10 Energy Capacity 250 Matter Stores 300 Matter Capacity 300 Sight Range 16 Terrain Scan Density 10 Armor Coverage 150 Evasion (%) 40 Item Schematics ----------------- None Robot Schematics ------------------ None Fabricated ------------ Nothing Alien Tech Used ----------------- None Achievements -------------- None Challenges ------------ None Game ------ Seed PowerPrecisionNukerbomber Manual? 0 Play Time 00:05:25 Cumulative 115.7 hours Start 2020.09.29 @ 11:21:00 End 2020.09.29 @ 11:24:51 Sessions 1 Manual Loads 0 Difficulty Rogue Special Mode None Game No. 144 Rogue 57 Adventurer 87 Explorer 0 Win Type - Total 4 Types 3/0/0/1/0/0/0/0/0 Lore% 52 Gallery% 64 Achievement% 55 Wizard Run 0 Options --------- ASCII 0 Keyboard 1 Movement Numpad Keybinds 0 Fullscreen 1 Font 18/Smallcaps Map View 76x50 Tactical HUD 1 Map Filters NONE Filters NONE Steam 1 RUN: fa3132ac-2eeb-46cb-b6c5-c64cdeb3cb28